bitfinex/quotes_ETHUSD_20240816
["timestamp","ask_amount","ask_price","bid_price","bid_amount"]
[1723782796537,13.46353634,2588.4,2588.0,35.0]
[1723782796538,9.74950682,2588.4,2588.0,35.0]
[1723782796774,7.40320682,2588.4,2588.0,35.0]
[1723782797083,7.40320682,2588.4,2588.2,2.3182]
[1723782797288,7.40320682,2588.4,2588.3,2.31812]
[1723782797499,3.71273299,2588.8,2588.3,2.31812]
[1723782797643,6.05903299,2588.9,2588.4,35.0]
[1723782797988,6.05883744,2588.9,2588.4,35.0]
[1723782798186,13.43329426,2589.0,2588.4,35.0]
[1723782798387,11.11574426,2589.0,2588.4,37.31803]
[1723782798593,3.71253744,2588.9,2588.5,2.39520002]
[1723782798815,7.40320682,2589.0,2588.5,2.39520002]
[1723782798816,7.40320682,2589.0,2588.8,2.31766]
[1723782799091,2.4868,2589.4,2588.8,2.31766]
[1723782799092,3.71253744,2589.4,2589.0,2.31748]
[1723782799304,11.32449314,2589.6,2588.5,3.104347]
[1723782799305,7.40320682,2589.6,2589.1,2.3052]
[1723782799960,7.40320682,2589.6,2589.0,2.31746]
[1723782800147,7.40320682,2589.6,2589.1,2.3174]
[1723782802944,0.21239734,2589.5,2589.1,2.3174]
[1723782803154,7.40320682,2589.6,2588.8,4.73574]
[1723782803389,2.3172,2589.4,2588.6,2.31785]
[1723782803718,9.72016682,2589.6,2588.9,37.31757]
[1723782803992,0.21243939,2589.5,2589.0,2.31749]
[1723782804154,7.40320682,2589.6,2589.0,2.31749]
[1723782804355,0.21242806,2589.5,2589.0,2.31749]
[1723782804543,7.40320682,2589.6,2589.1,35.0]
[1723782804888,7.40320682,2589.6,2589.1,37.31738]
[1723782805878,7.40320682,2589.6,2589.1,35.0]
[1723782807560,2.31704,2589.5,2589.1,35.0]
[1723782807755,2.3142,2589.4,2588.6,4.59912]
[1723782807961,2.3142,2589.4,2588.7,2.31776]
[1723782807962,4.63134,2589.4,2588.7,2.31776]
[1723782808278,5.92508068,2589.4,2588.8,35.0]
[1723782808474,8.24230068,2589.4,2588.8,35.0]
[1723782808674,0.2124691,2589.3,2588.8,35.0]
[1723782808882,0.84547698,2589.3,2588.8,35.0]
[1723782809199,3.16270698,2589.3,2588.8,35.0]
[1723782811342,0.84547698,2589.3,2588.8,35.0]
[1723782816611,3.16270698,2589.3,2588.8,35.0]
[1723782817866,0.21246645,2589.2,2588.8,35.0]
[1723782818010,3.16270698,2589.3,2588.8,35.0]
[1723782818347,1.12124519,2589.2,2588.8,35.0]
[1723782818519,0.90877877,2589.2,2588.8,35.0]
[1723782820457,9.72018682,2589.6,2588.8,35.0]
[1723782820640,0.2124242,2589.5,2588.9,2.2611]
[1723782820840,7.40320682,2589.6,2588.8,35.0]
[1723782820841,7.40320682,2589.6,2589.4,2.31706]
[1723782821349,7.40320682,2590.0,2589.6,2.31695]
[1723782821651,2.31625,2590.4,2588.9,0.07723208]
[1723782821652,4.76615,2590.5,2589.8,4.57781]
[1723782821852,0.21227737,2590.4,2589.8,4.57781]
[1723782822037,4.76591,2590.8,2590.0,2.31653]
[1723782822242,0.21224539,2590.7,2590.0,2.31653]
[1723782822554,2.31652,2590.1,2589.2,4.57833]
[1723782822855,0.21231429,2590.0,2589.4,2.31713]
[1723782823156,2.31636,2590.3,2589.5,0.55]
[1723782823447,0.21229187,2590.2,2589.5,0.55]
[1723782823811,0.21229187,2590.2,2589.6,35.0]
[1723782824012,0.21229187,2590.1,2589.7,0.55]
[1723782824349,2.31636,2590.3,2589.7,0.55]
[1723782824509,0.2123015,2590.2,2589.7,0.55]
[1723782824714,0.2123015,2590.1,2589.8,35.0]
[1723782824915,3.024615,2590.3,2589.8,35.0]
[1723782825149,0.21230092,2590.2,2589.8,35.0]
[1723782825358,0.21230092,2590.1,2589.8,35.0]
[1723782825556,2.31606,2590.6,2589.9,2.86663]
[1723782825848,0.21227704,2590.5,2589.9,0.55]
[1723782826051,1.07922403,2590.5,2589.9,0.55]
[1723782826260,0.21226959,2590.4,2590.0,35.0]
[1723782826451,0.21226959,2590.3,2590.0,35.0]
[1723782826615,0.21226959,2590.2,2590.0,35.0]
[1723782826820,0.21226959,2590.1,2590.0,35.0]
[1723782827042,1.07922403,2590.5,2590.0,35.55]
[1723782827232,0.21226139,2590.4,2590.0,35.55]
[1723782827433,0.21226139,2590.3,2590.0,35.55]
[1723782829152,0.21226139,2590.3,2590.0,37.86658]
[1723782829350,15.8795716,2590.7,2590.1,0.55]
[1723782829351,12.16917682,2590.7,2590.1,0.55]
[1723782829651,0.21224688,2590.6,2590.1,0.55]
[1723782829813,0.21224688,2590.5,2590.1,2.86651]
[1723782830021,0.21224688,2590.4,2590.1,2.86651]
[1723782830239,12.16917682,2590.7,2590.1,2.86651]
[1723782830442,0.21223421,2590.6,2590.1,2.86651]
[1723782830847,0.21223421,2590.6,2590.2,35.0]
[1723782832218,2.2953,2591.1,2590.5,2.4797]
[1723782832421,0.21219014,2591.0,2590.6,0.55]
[1723782832629,0.21219014,2590.9,2590.6,2.86605]
[1723782832825,9.71874682,2591.2,2590.7,35.0]
[1723782832826,0.21217615,2590.8,2590.7,35.0]
[1723782833028,0.21217615,2590.8,2590.7,35.55]
[1723782833363,2.31563,2591.1,2590.7,35.55]
[1723782833560,0.21217888,2591.0,2590.7,35.55]
[1723782833859,0.21217888,2590.9,2590.7,35.55]
[1723782834064,5.83476168,2591.1,2590.7,35.55]
[1723782834250,2.31588,2590.8,2590.7,35.0]
[1723782834449,0.21218883,2590.8,2590.7,35.0]
[1723782834627,2.52806883,2590.9,2590.2,4.79608]
[1723782834822,0.21218883,2590.8,2590.3,2.8663]
[1723782835037,2.31563,2591.1,2590.4,37.31618]
[1723782835261,0.21217779,2591.0,2590.5,0.55]
[1723782835464,2.31563,2591.1,2590.5,0.55]
[1723782835666,0.21217569,2591.0,2590.5,0.55]
[1723782835973,2.31563,2591.1,2590.6,35.0]
[1723782836325,7.40320682,2591.2,2590.7,0.55]
[1723782837033,7.40320682,2591.2,2590.8,35.0]
[1723782837470,0.1269677,2591.4,2590.9,2.86579]
[1723782837674,0.1269677,2591.4,2590.9,23.05613399]
[1723782837854,0.1269677,2591.4,2591.0,20.04294545]
[1723782838062,0.1269677,2591.4,2591.1,35.55]
[1723782838438,0.1269677,2591.4,2591.2,19.83138396]
[1723782838639,12.15242682,2591.7,2591.2,19.83138396]
[1723782838962,0.0858082,2591.4,2591.2,19.83138396]
[1723782839150,0.0858082,2591.4,2591.3,35.0]
[1723782840849,3.09679468,2591.4,2591.2,19.83138396]
[1723782841056,10.28498,2591.3,2591.2,19.83138396]
[1723782841304,10.49715558,2591.3,2591.2,19.83138396]
[1723782841591,10.28498,2591.3,2591.2,19.83138396]
[1723782841789,11.66836819,2591.3,2591.2,19.83138396]
[1723782841963,11.4562187,2591.3,2591.2,19.83138396]
[1723782842160,11.66837744,2591.3,2591.2,19.83138396]
[1723782844497,0.0858082,2591.3,2591.2,19.83138396]
[1723782845201,0.0858082,2591.3,2591.2,54.83138396]
[1723782845762,0.0858082,2591.3,2591.2,19.83138396]
[1723782846554,0.0858082,2591.3,2591.0,14.43327864]
[1723782847296,0.0858082,2591.3,2591.1,35.0]
[1723782847496,0.0858082,2591.3,2591.2,15.219979]
[1723782847802,2.4012482,2591.3,2591.2,15.219979]
[1723782847976,3.64616424,2591.3,2591.2,15.219979]
[1723782848296,3.64615537,2591.3,2591.2,15.219979]
[1723782848481,2.61338555,2591.3,2591.2,15.219979]
[1723782848684,0.0858082,2591.3,2591.2,15.219979]
[1723782848999,0.29792706,2591.3,2591.2,15.219979]
[1723782849296,2.61336706,2591.3,2591.2,15.219979]
[1723782849684,4.7166882,2591.3,2591.2,15.219979]
[1723782849885,6.13236068,2591.3,2591.2,15.219979]
[1723782850196,6.13238676,2591.3,2591.2,15.219979]
[1723782850563,8.44782676,2591.3,2591.2,15.219979]
[1723782852979,8.44782676,2591.3,2590.7,35.0]
[1723782853189,0.21215974,2591.2,2590.7,35.0]
[1723782853479,0.21215974,2591.1,2590.7,35.0]
[1723782853880,0.29796794,2591.1,2590.7,35.0]
[1723782854076,0.21215974,2591.0,2590.7,35.0]
[1723782854476,0.21215974,2591.0,2590.9,2.3612]
[1723782854681,0.0858082,2591.1,2590.9,5.22694]
[1723782854968,0.0858082,2591.1,2591.0,17.00799818]
[1723782855173,0.0858082,2591.1,2591.0,19.32369818]
[1723782855475,0.0858082,2591.1,2591.0,21.68489818]
[1723782861785,0.0858082,2591.1,2591.0,19.36919818]
[1723782863424,0.0858082,2591.1,2591.0,16.50834819]
[1723782865227,0.29788769,2591.1,2591.0,16.50834819]
[1723782865731,0.0858082,2591.1,2591.0,16.50834819]
[1723782866030,0.0858082,2591.1,2591.0,11.83144819]
[1723782866216,0.29789655,2591.1,2591.0,11.28144819]
[1723782866448,0.0858082,2591.1,2591.0,11.28144819]
[1723782867024,0.29791337,2591.1,2591.0,11.28144819]
[1723782867435,2.61352337,2591.1,2591.0,11.28144819]
[1723782867667,0.29791337,2591.1,2590.5,4.75287]
[1723782867826,0.21210517,2591.0,2590.6,2.31604]
[1723782868032,0.21210517,2590.9,2590.6,2.31604]
[1723782868235,0.21210517,2590.8,2590.6,2.31604]
[1723782868549,0.0858082,2591.0,2590.6,2.31604]
[1723782868746,0.21214293,2590.9,2590.7,0.55]
[1723782869062,0.21214293,2590.8,2590.7,2.86597]
[1723782870225,0.29795113,2590.8,2590.7,0.55]
[1723782870431,0.29795113,2590.8,2590.6,0.55]
[1723782870658,0.21214293,2590.7,2590.6,0.55]
[1723782871053,0.29795113,2590.7,2590.6,0.55]
[1723782871257,0.29796068,2590.7,2590.6,0.55]
[1723782871566,0.29796818,2590.7,2590.6,0.55]
[1723782871868,0.29796834,2590.7,2590.6,2.86606]
[1723782872253,0.29796834,2590.7,2590.6,0.55]
[1723782872631,0.29796834,2590.7,2590.6,2.86606]
[1723782873579,0.29796834,2590.7,2590.6,0.55]
[1723782875643,0.0858082,2590.7,2590.6,0.55]
[1723782876039,0.0858082,2590.7,2590.6,2.86606]
[1723782876753,0.29796854,2590.7,2590.6,2.86606]
[1723782877273,2.3009,2590.4,2589.9,2.31666]
[1723782877434,0.21216034,2590.3,2589.9,2.31666]
[1723782877640,0.21216034,2590.2,2589.9,4.63323]
[1723782877840,2.4790082,2590.7,2590.2,2.31642]
[1723782878042,0.21222139,2590.6,2590.4,2.31618]
[1723782878267,0.0858082,2590.7,2590.4,4.62348]
[1723782878580,0.21217512,2590.6,2590.5,0.55]
[1723782878767,0.21217512,2590.6,2590.5,2.86615]
[1723782879281,0.29798332,2590.6,2590.5,0.55]
[1723782880144,0.29798281,2590.6,2590.5,0.55]
[1723782883195,2.60478281,2590.6,2590.2,2.31639]
[1723782883483,0.21217461,2590.5,2590.0,13.42076075]
[1723782883648,0.21217461,2590.4,2590.0,2.31656]
[1723782883844,0.21217461,2590.3,2590.0,4.63308]
[1723782884084,2.3926082,2590.6,2590.0,4.63308]
[1723782884250,0.29805005,2590.5,2590.1,2.31649]
[1723782884451,0.21224185,2590.4,2590.1,2.31649]
[1723782884675,0.0858082,2590.5,2590.2,0.55]
[1723782884879,0.21223179,2590.4,2590.2,0.55]
[1723782885201,0.0858082,2590.5,2590.2,0.55]
[1723782885410,0.21222592,2590.4,2590.2,0.55]
[1723782885581,0.0858082,2590.5,2590.2,0.55]
[1723782885910,0.21222589,2590.4,2590.2,0.55]
[1723782886128,0.21222589,2590.3,2590.1,0.55]
[1723782886414,0.0858082,2590.5,2590.1,0.55]
[1723782886767,0.21224238,2590.4,2590.1,0.55]
[1723782886971,0.21224238,2590.3,2590.1,0.55]
[1723782887272,0.0858082,2590.5,2590.1,0.55]
[1723782887474,0.21224494,2590.4,2590.1,0.55]
[1723782887687,0.21224494,2590.3,2590.1,0.55]
[1723782887873,0.0858082,2590.5,2590.1,0.55]
[1723782888099,0.21224505,2590.4,2590.1,0.55]
[1723782888298,0.21224505,2590.3,2590.1,0.55]
[1723782888610,0.0858082,2590.5,2590.1,0.55]
[1723782888812,0.0858082,2590.5,2589.8,2.31674]
[1723782888813,0.21224492,2590.4,2589.8,2.31674]
[1723782889117,4.89707492,2590.3,2589.6,2.31693]
[1723782889328,4.89707492,2590.3,2589.6,2.31689]
[1723782889329,0.21224492,2590.2,2589.6,2.31689]
[1723782889624,2.52868492,2590.2,2589.6,2.31689]
[1723782889823,0.21224492,2590.1,2589.6,2.31689]
[1723782890499,2.3685,2590.3,2589.8,2.31671]
[1723782890673,0.21226515,2590.2,2589.8,2.31671]
[1723782890874,0.21226562,2590.1,2589.8,2.31671]
[1723782891207,2.3685,2590.3,2589.8,2.31671]
[1723782891376,0.21227726,2590.2,2589.9,0.55]
[1723782891577,0.21227726,2590.1,2589.9,0.55]
[1723782891778,2.3685,2590.3,2589.9,0.55]
[1723782892007,0.21227613,2590.2,2589.9,0.55]
[1723782892206,0.21227613,2590.1,2589.9,0.55]
[1723782892404,2.3685,2590.3,2589.9,0.55]
[1723782892606,0.2122839,2590.2,2589.9,0.55]
[1723782892804,0.21228128,2590.1,2589.9,0.55]
[1723782893005,2.3685,2590.3,2589.9,0.55]
[1723782893210,0.21227659,2590.2,2589.9,0.55]
[1723782893513,0.21227659,2590.1,2589.9,0.55]
[1723782893716,2.3685,2590.3,2589.9,0.55]
[1723782893885,1.341,2590.1,2589.9,0.55]
[1723782894081,0.21228405,2590.0,2589.9,0.55]
[1723782894282,1.341,2590.1,2589.6,2.31691]
[1723782894599,1.341,2589.9,2589.7,0.55]
[1723782896818,0.0858082,2590.5,2589.9,2.2923]
[1723782896999,0.21222426,2590.4,2590.2,2.31634]
[1723782897201,0.0858082,2590.5,2590.2,2.31634]
[1723782897496,0.21221156,2590.4,2590.3,0.55]
[1723782898624,0.21221679,2590.4,2590.3,0.55]
[1723782900297,2.3097,2590.3,2590.1,0.55]
[1723782900515,0.21221679,2590.2,2590.0,0.55]
[1723782901893,0.21221679,2590.2,2590.1,2.31651]
[1723782902091,0.21221679,2590.2,2590.1,2.86651]
[1723782902327,0.21223196,2590.4,2590.1,2.86651]
[1723782902503,0.21223196,2590.3,2590.1,0.55]
[1723782902697,0.21223196,2590.2,2590.1,0.55]
[1723782902894,0.21223196,2590.2,2590.0,0.55]
[1723782903202,2.3955082,2590.5,2590.0,0.55]
[1723782903404,5.74650451,2590.4,2590.0,0.55]
[1723782903590,2.64315451,2590.3,2589.9,0.55]
[1723782903796,0.21225451,2590.2,2589.9,0.55]
[1723782904018,0.21225451,2590.1,2589.9,0.55]
[1723782904218,2.4309,2590.3,2590.0,2.3166]
[1723782904420,2.4702082,2590.5,2590.0,2.3166]
[1723782904639,2.4702082,2590.5,2590.1,0.55]
[1723782904640,0.0858082,2590.5,2590.1,0.55]
[1723782904842,0.21220754,2590.4,2590.3,2.31627]
[1723782905138,0.0858082,2590.5,2590.4,2.31624]
[1723782905336,0.29799094,2590.5,2590.4,2.31624]
[1723782905538,0.29799094,2590.5,2590.4,2.86624]
[1723782906501,0.29799094,2590.5,2590.4,0.55]
[1723782906826,0.29799094,2590.5,2590.4,2.86624]
[1723782907704,0.0858082,2590.5,2590.4,2.86624]
[1723782907902,0.29798619,2590.5,2590.4,2.86624]
[1723782908509,0.0858082,2590.5,2590.4,5.23634]
[1723782908916,0.2979652,2590.5,2590.4,5.23634]
[1723782909119,0.0858082,2590.5,2590.4,5.23634]
[1723782909344,0.29798054,2590.5,2590.4,5.23634]
[1723782909523,0.0858082,2590.5,2590.4,7.55258]
[1723782911745,0.0858082,2590.5,2590.4,2.86624]
[1723782912113,0.29798526,2590.5,2590.4,2.86624]
[1723782913818,0.0858082,2590.5,2590.4,2.86624]
[1723782914019,0.0858082,2590.5,2590.4,0.55]
[1723782914308,0.0858082,2590.5,2590.3,0.55]
[1723782914513,0.0858082,2590.5,2590.3,2.86632]
[1723782915071,0.21221026,2590.4,2590.1,10.38612363]
[1723782915250,0.0858082,2590.5,2590.1,10.38612363]
[1723782915429,2.58061572,2590.4,2590.1,10.38612363]
[1723782915629,0.21221572,2590.3,2590.1,10.38612363]
[1723782916537,0.21221572,2590.3,2590.2,0.55]
[1723782917452,0.0858082,2590.5,2590.2,0.55]
[1723782917632,0.21220511,2590.4,2590.2,0.55]
[1723782917832,0.0858082,2590.5,2590.2,0.55]
[1723782918033,0.21220913,2590.4,2590.2,0.55]
[1723782918286,0.2122222,2590.3,2590.2,0.55]
[1723782918579,0.0858082,2590.5,2590.2,0.55]
[1723782918731,0.21221158,2590.4,2590.2,0.55]
[1723782918930,0.0858082,2590.5,2590.2,0.55]
[1723782919135,0.2122143,2590.4,2590.2,0.55]
[1723782919365,0.0858082,2590.5,2590.2,0.55]
[1723782919574,0.21221351,2590.4,2590.2,0.55]
[1723782919882,4.68464,2590.4,2590.3,35.0]
[1723782920030,4.89692257,2590.4,2590.3,35.0]
[1723782920232,9.02807173,2590.4,2590.3,35.0]
[1723782920426,9.24035875,2590.4,2590.3,35.0]
[1723782921302,2.31639,2590.3,2589.9,10.38073095]
[1723782921447,0.21228702,2590.2,2589.5,2.3593]
[1723782921650,4.83220702,2590.1,2589.5,2.31704]
[1723782921852,0.21228702,2590.0,2589.6,35.0]
[1723782922048,0.21228702,2589.9,2589.6,37.31695]
[1723782922249,0.21230249,2589.8,2589.6,37.31695]
[1723782922451,2.3034,2590.1,2589.6,37.31695]
[1723782922807,0.21229883,2590.0,2589.7,2.2657]
[1723782923019,9.90290682,2590.4,2589.8,2.86676]
[1723782923328,0.21228596,2590.3,2589.8,2.86676]
[1723782923449,0.21228596,2590.2,2589.8,2.86676]
[1723782923650,0.21228596,2590.1,2589.8,2.86676]
[1723782923983,12.21915682,2590.4,2589.8,2.86676]
[1723782923984,0.21228477,2590.0,2589.8,2.86676]
[1723782924156,0.21228477,2589.9,2589.8,2.86676]
[1723782924571,0.21228477,2589.9,2589.8,0.55]
[1723782924772,0.21228477,2589.9,2589.7,0.55]
[1723782925100,0.21228477,2589.8,2589.7,0.55]
[1723782925553,2.2641,2590.0,2589.7,0.55]
[1723782925755,0.21229903,2589.9,2589.7,0.55]
[1723782925954,0.21230365,2589.8,2589.7,0.55]
[1723782926154,2.2641,2590.0,2589.7,0.55]
[1723782926389,0.21229733,2589.9,2589.7,0.55]
[1723782926603,2.2641,2590.0,2589.7,0.55]
[1723782926766,0.21230062,2589.9,2589.7,0.55]
[1723782926970,0.21230062,2589.8,2589.7,0.55]
[1723782927183,0.21230062,2589.9,2589.6,45.38033155]
[1723782927412,2.31696,2589.6,2589.0,2.31742]
[1723782927610,2.2731,2589.4,2589.0,2.31742]
[1723782927920,0.21230062,2589.3,2589.1,35.0]
[1723782928509,2.2731,2589.4,2589.1,35.0]
[1723782928674,0.21241884,2589.3,2589.1,35.0]
[1723782928872,2.2731,2589.5,2589.1,35.0]
[1723782929089,0.21239793,2589.4,2589.1,35.0]
[1723782929257,2.2731,2589.5,2589.1,35.0]
[1723782929987,0.21239734,2589.4,2589.1,35.0]
[1723782930197,2.2731,2589.5,2589.1,35.0]
[1723782930575,0.2123999,2589.4,2589.1,35.0]
[1723782930778,2.2731,2589.5,2589.1,35.0]
[1723782931112,2.31729,2589.3,2589.1,35.0]
[1723782931324,2.3172,2589.4,2589.1,35.0]
[1723782931611,0.21243978,2589.3,2589.1,35.0]
[1723782931814,2.3253,2589.2,2589.1,35.0]
[1723782931962,2.42446238,2589.2,2589.1,35.0]
[1723782932160,2.63691623,2589.2,2589.1,35.0]
[1723782932362,2.42446238,2589.2,2589.1,35.0]
[1723782932606,2.6369196,2589.2,2589.1,35.0]
[1723782933186,2.6369196,2589.2,2588.7,2.31775]
[1723782933514,2.42446238,2589.2,2588.8,0.55]
[1723782933715,2.42446238,2589.2,2588.8,35.55]
[1723782934566,2.42446238,2589.2,2588.8,37.86765]
[1723782938453,2.42446238,2589.2,2588.8,35.55]
[1723782939164,4.74180238,2589.2,2588.8,35.0]
[1723782939302,2.3174,2589.1,2588.8,35.0]
[1723782939501,2.2564,2589.1,2588.8,35.0]
[1723782939736,0.56636011,2589.0,2588.8,35.0]
[1723782939913,0.09906987,2589.0,2588.8,35.0]
[1723782940597,0.09906987,2589.0,2588.9,2.86758]
[1723782940801,9.65960682,2589.5,2588.9,2.86758]
[1723782941111,0.09561363,2589.0,2588.9,2.86758]
[1723782941315,9.65960682,2589.5,2588.9,2.86758]
[1723782941621,10.8572695,2589.5,2589.0,2.31748]
[1723782941782,0.09561363,2589.4,2589.0,2.31748]
[1723782941990,0.09561363,2589.4,2588.9,2.86758]
[1723782942946,0.09561363,2589.4,2588.8,35.0]
[1723782942947,2.41282363,2589.4,2588.8,35.0]
[1723782943133,2.2564,2589.2,2588.8,35.0]
[1723782943532,0.09566356,2589.1,2588.8,35.0]
[1723782944395,0.09566356,2589.1,2588.9,2.31752]
[1723782944681,0.09565729,2589.0,2588.9,4.63516]
[1723782945030,0.09565729,2589.0,2588.9,5.18516]
[1723782945235,7.40320682,2589.5,2589.2,2.31727]
[1723782945898,7.40320682,2589.5,2589.3,2.31721]
[1723782946046,7.40320682,2589.5,2589.4,2.86713]
[1723782946248,7.40320682,2589.9,2589.4,2.86709]
[1723782946583,7.40320682,2589.9,2589.6,2.31687]
[1723782947674,7.40320682,2589.9,2589.7,37.31685]
[1723782947885,7.40320682,2589.9,2589.7,35.0]
[1723782948060,7.40320682,2589.9,2589.7,37.31687]
[1723782948256,7.40320682,2589.9,2589.7,35.0]
[1723782952113,2.2564,2590.1,2589.7,35.0]
[1723782952311,0.21233178,2590.0,2589.7,35.0]
[1723782953294,0.21233724,2589.9,2589.7,35.0]
[1723782953475,0.21233717,2589.8,2589.7,35.0]
[1723782954754,0.30547877,2589.8,2589.7,35.0]
[1723782956255,2.61147877,2589.8,2589.7,35.0]
[1723782956496,3.10429665,2589.8,2589.7,35.0]
[1723782957357,2.89195948,2589.8,2589.7,35.0]
[1723782957561,2.61149524,2589.8,2589.7,35.0]
[1723782957796,0.30549524,2589.8,2589.7,35.0]
[1723782959418,0.30549524,2589.8,2589.4,4.76379]
[1723782959594,0.21235364,2589.7,2589.5,0.55]
[1723782959800,0.0931416,2589.8,2589.5,0.55]
[1723782960115,2.487,2590.0,2589.5,0.55]
[1723782960116,0.30138748,2589.7,2589.6,35.0]
[1723782960864,0.08904848,2589.7,2589.6,35.0]
[1723782961218,0.21235624,2589.9,2589.6,35.0]
[1723782961373,2.689013,2589.9,2589.6,35.0]
[1723782961578,0.21236528,2589.8,2589.6,35.0]
[1723782961928,0.21236528,2589.7,2589.6,35.0]
[1723782962410,0.30142623,2589.7,2589.6,35.0]
[1723782962563,0.30142623,2589.7,2589.6,37.31696]
[1723782962761,0.08906095,2589.7,2589.6,37.31696]
[1723782963392,0.30139941,2589.7,2589.6,37.31696]
[1723782964353,0.30139941,2589.7,2589.6,35.0]
[1723782964990,0.08906095,2589.7,2589.6,35.0]
[1723782965202,0.21234647,2589.9,2589.6,35.0]
[1723782965407,0.30140742,2589.8,2589.7,2.31687]
[1723782965560,0.08906095,2589.8,2589.7,2.39409356]
[1723782965962,0.08908902,2589.8,2589.7,2.31687]
[1723782966411,9.71100682,2590.3,2589.7,2.31687]
[1723782966563,0.08908902,2589.8,2589.7,2.31687]
[1723782966893,9.71100682,2590.3,2589.7,2.86687]
[1723782967082,0.2122956,2590.2,2589.8,0.55]
[1723782967263,0.30164344,2590.1,2589.8,0.55]
[1723782967458,0.2122956,2590.0,2589.8,0.55]
[1723782967668,0.2122956,2590.0,2589.6,35.0]
[1723782967669,0.0858082,2590.5,2590.4,2.31624]
[1723782967914,0.0858082,2590.5,2590.2,2.31641]
[1723782968221,0.0858082,2590.5,2590.4,37.31624]
[1723782968521,0.0858082,2590.5,2590.4,39.74844]
[1723782968661,0.0858082,2590.5,2590.4,40.29844]
[1723782968862,0.0858082,2590.5,2590.4,35.55]
[1723782969504,0.0858082,2590.5,2590.4,37.86624]
[1723782970271,0.0858082,2590.5,2590.4,35.55]
[1723782971776,0.0858082,2590.5,2590.4,35.0]
[1723782972008,2.4444082,2590.5,2590.4,35.0]
[1723782972176,0.0858082,2590.5,2590.4,35.0]
[1723782972374,0.0858082,2590.5,2590.4,37.31624]
[1723782972912,0.0858082,2590.5,2590.4,35.0]
[1723782973314,0.16369304,2590.5,2590.4,35.0]
[1723782973629,0.16369304,2590.5,2590.4,35.55]
[1723782974133,0.16369304,2590.5,2590.4,40.18248]
[1723782974474,0.0858082,2590.5,2590.4,40.18248]
[1723782976536,0.0858082,2590.5,2590.4,37.86624]
[1723782978996,0.0858082,2590.5,2590.4,35.55]
[1723782979198,0.0858082,2590.5,2590.4,35.0]
[1723782979945,0.0858082,2590.5,2590.4,37.31624]
[1723782980145,0.0858082,2590.5,2590.4,37.86624]
[1723782980461,0.0858082,2590.5,2590.4,39.27153197]
[1723782982033,0.0858082,2590.5,2590.4,41.58777197]
[1723782987350,0.0858082,2590.5,2590.4,36.95529197]
[1723782987647,0.0858082,2590.5,2590.4,36.40529197]
[1723782988317,0.16372081,2590.5,2590.4,36.40529197]
[1723782989817,0.16372081,2590.5,2590.4,35.0]
[1723782991026,0.16372081,2590.5,2590.2,2.31641]
[1723782991533,0.16372081,2590.5,2590.4,35.0]
[1723782993862,0.16372081,2590.5,2590.4,37.31624]
[1723782994177,0.16372081,2590.5,2590.4,40.18248]
[1723782996854,0.0858082,2590.5,2590.4,40.18248]
[1723782998250,0.29796272,2590.5,2590.4,40.18248]
[1723782999982,0.29796272,2590.5,2590.4,35.0]
[1723783000443,0.37585659,2590.5,2590.4,35.0]
[1723783001343,0.37585659,2590.5,2590.4,37.31624]
[1723783001951,0.37588588,2590.5,2590.4,37.31624]
[1723783003087,0.37588588,2590.5,2590.4,35.0]
[1723783003581,2.76148588,2590.5,2590.4,35.0]
[1723783003753,3.03763447,2590.5,2590.4,35.0]
[1723783003946,4.37863447,2590.5,2590.4,35.0]
[1723783005451,2.76148588,2590.5,2590.4,35.0]
[1723783005865,2.54930207,2590.5,2590.4,35.0]
[1723783006168,2.76152787,2590.5,2590.4,35.0]
[1723783006690,2.76152787,2590.5,2590.4,5.18248]
[1723783006691,0.37592787,2590.5,2590.4,5.18248]
[1723783007060,0.37592787,2590.5,2590.4,40.18248]
[1723783007772,0.37592787,2590.5,2590.4,37.86624]
[1723783008699,0.16370207,2590.5,2590.4,37.86624]
[1723783009186,0.37586912,2590.5,2590.4,37.86624]
[1723783009891,0.16370207,2590.5,2590.4,37.86624]
[1723783010898,0.37585396,2590.5,2590.4,37.86624]
[1723783015067,0.37585396,2590.5,2590.4,35.0]
[1723783016307,0.3758812,2590.5,2590.4,35.0]
[1723783020310,0.3758812,2590.5,2590.4,39.20816345]
[1723783021121,0.16370207,2590.5,2590.4,39.20816345]
[1723783021319,0.37585881,2590.5,2590.4,36.89190799]
[1723783021622,0.16370207,2590.5,2590.4,35.55]
[1723783021787,0.37587991,2590.5,2590.4,35.55]
[1723783022396,0.37587991,2590.5,2590.4,37.86624]
[1723783022592,0.16370207,2590.5,2590.4,37.86624]
[1723783022797,0.3758762,2590.5,2590.4,37.86624]
[1723783025020,0.3758762,2590.5,2590.4,39.20819264]
[1723783025383,0.3758762,2590.5,2590.4,43.53730097]
[1723783025620,0.16370207,2590.5,2590.4,43.53730097]
[1723783025822,0.16370207,2590.5,2590.4,43.536926]
[1723783026021,0.0858082,2590.5,2590.4,47.41920418]
[1723783026724,0.0858082,2590.5,2590.4,48.76020418]
[1723783027498,0.0858082,2590.5,2590.4,44.877926]
[1723783028905,0.0858082,2590.5,2590.4,48.04097711]
[1723783029398,0.0858082,2590.5,2590.4,48.04087135]
[1723783029931,0.0858082,2590.5,2590.4,47.234626]
[1723783030292,0.0858082,2590.5,2590.4,48.04085023]
[1723783033531,0.0858082,2590.5,2590.4,47.2345964]
[1723783034146,0.0858082,2590.5,2590.4,48.04064477]
[1723783039196,0.0858082,2590.5,2590.4,44.34294477]
[1723783039409,0.0858082,2590.5,2590.4,43.5370021]
[1723783042355,0.0858082,2590.5,2590.4,41.2207621]
[1723783042808,0.1551351,2590.5,2590.4,41.2207621]
[1723783043003,2.4375351,2590.5,2590.4,35.55]
[1723783043227,2.64967096,2590.5,2590.4,35.55]
[1723783044054,0.15510697,2590.5,2590.4,39.20815471]
[1723783044221,0.15510697,2590.5,2590.4,41.22097108]